Cogmind - Beta 13 @@@ ROGUE MODE // 2024.06.18 @ 23:08:49 Player: paplal Result: Destroyed by G-47 Trooper with Particle Gun Performance ------------- Evolutions (0) 0 Regions Visited (1) 200 Robots Destroyed (7) 35 Value Destroyed (251) 251 Prototype IDs (0) 0 Alien Tech Used (0) 0 Bonus (0) 0 TOTAL SCORE: 486 Bonus ------- None Cogmind --------- Core Integrity 0/250 Matter 225/300 Energy 234/250 System Corruption 2% Temperature Cool (27) Movement Core (300) Ox5 Location -10/Materials Parts ------- > --- POWER (1) -------- Ion Engine > --- PROPULSION (2) --- (None) > --- UTILITY (2) ------ Medium Storage Unit > --- WEAPON (2) ------- Small Laser Mining Claw > --- INVENTORY (10) --- Light Ion Engine Light Treads EMP Blaster Peak State ------------ > --- POWER ------------ Ion Engine > --- PROPULSION ------- Light Treads Light Treads > --- UTILITY ---------- Small Storage Unit Weight Redist. System > --- WEAPON ----------- Small Laser Light Assault Rifle > --- INVENTORY -------- Ion Engine Light Ion Engine Aluminum Leg Aluminum Leg Light Assault Rifle EMP Blaster Grenade Launcher [Rating: 8] Favorites ----------- Power Ion Engine Engine Ion Engine Propulsion Light Treads Treads Light Treads Leg Aluminum Leg Utility Weight Redist. System Device Weight Redist. System Storage Medium Storage Unit Weapon Light Assault Rifle Energy Gun Small Laser Ballistic Gun Light Assault Rifle Launcher Grenade Launcher Slashing Weapon Mining Claw Build | -11 -10 ------- Run | Yrd Mat Slots Evolved . | . . Power . | . . Propulsion . | . . Utility . | . . Weapon . | . . Parts Attached 18 | 6 12 Power 3 | 1 2 Engine 3 | 1 2 Core . | . . Reactor . | . . Propulsion 4 | 2 2 Treads 2 | 2 . Leg 2 | . 2 Wheel . | . . Hover . | . . Flight . | . . Utility 3 | 1 2 Device 1 | . 1 Storage 2 | 1 1 Processor . | . . Hackware . | . . Protection . | . . Artifact . | . . Weapon 8 | 2 6 Energy Gun 3 | 1 2 Energy Cannon . | . . Ballistic Gun 3 | 1 2 Ballistic Cannon . | . . Launcher 1 | . 1 Special Weapon . | . . Impact Weapon . | . . Slashing Weapon 1 | . 1 Piercing Weapon . | . . Special Melee Weapon . | . . Unidentified Prototypes . | . . Parts Lost 8 | . 8 Power 1 | . 1 Propulsion 3 | . 3 Utility 1 | . 1 Weapon 3 | . 3 Highest Loss Streak 4 | . 4 To Critical Strikes . | . . Average Slot Usage (%) 79 | . 79 Engine 10 | . 10 Treads 13 | . 13 Leg 11 | . 11 Device 8 | . 8 Storage 14 | . 14 Energy Gun 7 | . 7 Ballistic Gun 13 | . 13 Naked Turns . | . . Heaviest Build 17 | 12 17 Greatest Support 46 | 40 46 Greatest Overweight (x) 1 | . 1 Average Overweight (x) . | . . Largest Inventory Capacity 10 | 8 10 Average Capacity 8 | 7 9 Most Carried 9 | 5 9 Average Carried 5 | 2 5 Final Capacity 10 | 8 10 Final Carried 4 | 4 3 Class Distribution -------------------- 100% | Mutant Dominant Class ---------------- Mutant | -10/Materials Resources | -11 -10 ----------- Run | Yrd Mat Matter Collected 339 | 178 161 Remotely . | . . Salvage Created 256 | . 256 Parts 18 | . 18 Haulers Intercepted . | . . Recyclers Shooed . | . . Parts Field Recycled . | . . Retrieved Matter . | . . Parts Self-Destructed . | . . Prevented . | . . Kills | -11 -10 ------- Run | Yrd Mat Combat Hostiles Destroyed 7 | . 7 Guns 6 | . 6 AOE 1 | . 1 Classes Destroyed 1 | . 1 Grunt 7 | . 7 Best Kill Streak 3 | . 3 Combat Bots Only 3 | . 3 Max Kills in Single Turn 1 | . 1 Gunslinging . | . . Exploded 1 | . 1 Melee . | . . Uniques/NPCs Destroyed . | . . Combat | -11 -10 -------- Run | Yrd Mat Hostile Shots Fired 105 | . 105 Missed 26 | . 26 Damage Taken 1072 | . 1072 Core 259 | . 259 Absorbed by Shields . | . . Core Remaining (%) 100 | 100 . Volleys Fired 53 | . 53 Largest 2 | . 2 Hottest 60 | . 60 Shots Fired 70 | . 70 Gun 68 | . 68 Cannon . | . . Launcher 2 | . 2 Special . | . . Kinetic 52 | . 52 Thermal 16 | . 16 Explosive 2 | . 2 Electromagnetic . | . . Robot Hit Streak 12 | . 12 Robot Miss Streak 5 | . 5 Penetration Max . | . . Secondary Targets . | . . Shots Hit Robots 47 | . 47 Core Hits 19 | . 19 Critical Kills . | . . Critical Parts Destroyed . | . . Critical Strikes . | . . Melee Attacks . | . . Impact . | . . Slashing . | . . Piercing . | . . Sneak Attacks . | . . Combat Hostiles . | . . Follow-up Attacks . | . . Damage Inflicted 563 | . 563 Guns 418 | . 418 Cannons . | . . Explosions 142 | . 142 Melee . | . . Ramming 3 | . 3 Kinetic 250 | . 250 Thermal 168 | . 168 Explosive 142 | . 142 Electromagnetic . | . . Impact . | . . Slashing . | . . Piercing . | . . Highest Corruption 2 | . 2 Average Corruption 2 | . 2 Corruption Purged . | . . Corruption Blocked . | . . Effects 2 | . 2 Matter Fused 1 | . 1 Misfires 1 | . 1 Overload Shots . | . . Overflow Damage 10 | . 10 Projectiles . | . . Explosions 10 | . 10 Melee . | . . Knockbacks . | . . Impact . | . . Kinetic . | . . Secondary . | . . Self-Inflicted Damage 78 | . 78 Shots 2 | . 2 Rammed 2 | . 2 Targets Rammed 2 | . 2 Kicked . | . . Crushed . | . . Highest Temperature 119 | . 119 Average Temperature 43 | . 43 Received Heat Transfer 603 | . 603 Siege Activations . | . . Robots Corrupted . | . . Combat Hostiles . | . . Parts Fried . | . . Impact Corruptions . | . . Robots Melted . | . . Combat Hostiles . | . . Parts Melted . | . . Heat Transferred 375 | . 375 Parts Sabotaged . | . . Parts Stolen . | . . Parts Stripped . | . . Power Chain Reactions . | . . Alert | -11 -10 ------- Run | Yrd Mat Peak Influence 111 | . 111 Initial . | . . Average 41 | . 47 Maximum Alert Level . | . . Low Security (%) 100 | 100 100 Level 1 . | . . Level 2 . | . . Level 3 . | . . Level 4 . | . . Level 5 . | . . High Security . | . . Max Security . | . . Squads Dispatched 2 | . 2 Investigation . | . . Extermination . | . . Reinforcement 2 | . 2 Assault . | . . Garrison . | . . Intercept . | . . Searches Triggered . | . . Construction Impeded . | . . Haulers Reinforced . | . . Active Scanning Responses . | . . Cargo Convoy Interrupts . | . . Stealth | -11 -10 --------- Run | Yrd Mat Distress Signals . | . . Communications Jammed . | . . Distress Signals . | . . Times Spotted 14 | . 14 Peak Tracking Total 5 | . 5 Tactical Retreats . | . . Traps | -11 -10 ------- Run | Yrd Mat Traps Triggered 2 | . 2 Indirectly . | . . Trap Hack Attempts . | . . Triggered . | . . Disarmed . | . . Reprogrammed . | . . Reused . | . . Traps Extracted . | . . Installed . | . . Triggered . | . . Machines | -11 -10 ---------- Run | Yrd Mat Machines Disabled . | . . Max in Single Turn . | . . Machines Repaired . | . . Machines Dismantled . | . . Machines Sabotaged . | . . Overloaded Fab Kills . | . . Hacking | -11 -10 --------- Run | Yrd Mat Machines Accessed 1 | . 1 Terminals 1 | . 1 Fabricators . | . . Repair Stations . | . . Recycling Units . | . . Scanalyzers . | . . Garrison Access . | . . Total Hacks 1 | . 1 Successful . | . . Failed 1 | . 1 Catastrophic 1 | . 1 Database Lockouts . | . . Manual . | . . Terminals 1 | . 1 Fabricators . | . . Repair Stations . | . . Recycling Units . | . . Scanalyzers . | . . Garrison Access . | . . Terminal Hacks . | . . Fabricator Hacks . | . . Repair Station Hacks . | . . Recycling Unit Hacks . | . . Scanalyzer . | . . Garrison Access Hacks . | . . Unauthorized Hacks . | . . Terminals . | . . Fabricators . | . . Repair Stations . | . . Recycling Units . | . . Scanalyzers . | . . Garrison Access . | . . Data Cores Recovered . | . . Used . | . . Hacking Detections 1 | . 1 Full Trace Events . | . . Feedback Events . | . . Feedback Blocked . | . . Robot Schematics Acquired . | . . Robots Built . | . . Authchips . | . . Time . | . . Total Robot Build Rating . | . . Part Schematics Acquired . | . . Parts Built . | . . Authchips . | . . Time . | . . Total Part Build Rating . | . . Parts Repaired . | . . Time . | . . Parts Recycled . | . . Recycled Matter . | . . Retrieved Matter . | . . Retrieved Components . | . . Parts Scanalyzed . | . . Part Schematics Acquired . | . . Parts Damaged . | . . Bothacking | -11 -10 ------------ Run | Yrd Mat Used RIF Installer . | . . Robots Hacked . | . . Non-combat . | . . Combat . | . . Robot Hacks Applied . | . . Relay Couplers Released . | . . Fabnet Peak Effective % . | . . Robots Rewired . | . . Allies Hacked . | . . Hacks Repelled . | . . Allies | -11 -10 -------- Run | Yrd Mat Total Allies . | . . Largest Group . | . . Highest-Rated Group . | . . Highest-Rated Ally . | . . Total Orders . | . . Ally Attacks . | . . Total Damage . | . . Kills . | . . Allies Corrupted . | . . Allies Melted . | . . Intel | -11 -10 ------- Run | Yrd Mat Robot Analysis Total . | . . Derelict Logs Recovered . | . . Drone Launches . | . . Drone Recoveries . | . . Exploration | -11 -10 ------------- Run | Yrd Mat Turns Passed 552 | 64 488 Spaces Moved 268 | 37 231 Core 11 | 9 2 Treads 138 | 28 110 Legs 119 | . 119 Wheels . | . . Hover . | . . Flight . | . . Fastest Speed 50 | 50 100 Average Speed 138 | 133 139 Slowest Speed 190 | 160 190 Overloaded Moves . | . . Propulsion Burnouts . | . . Robots Hopped . | . . Cave-ins Triggered . | . . Exploration Rate (%) 23 | 4 42 Regions Visited 1 Branch Regions . Pre-discovered Areas . | . . Known Exits Taken . | . . Unknown Exits Taken 1 | 1 . Scrap Searched . | . . Spaces Dug . | . . Terrain Destroyed 10 | . 10 Melee . | . . Projectile . | . . AOE 10 | . 10 Terrain Rammed . | . . Walls Destroyed . | . . Machines Disabled . | . . Actions | -11 -10 --------- Run | Yrd Mat Total 388 | 51 337 Wait 30 | . 30 Move 267 | 36 231 Hop . | . . Pick Up 16 | 9 7 Fast Attach 3 | 1 2 Attach 12 | 5 7 Detach . | . . Swap 3 | . 3 Drop 2 | . 2 Fire 53 | . 53 Melee . | . . Ram . | . . Kick . | . . Crush 2 | . 2 Escape Stasis . | . . Rewire . | . . Trap . | . . Miscellaneous . | . . Route ------- -11/Scrapyard -10/Materials (discovered 1 exit: [*Min]) History --------- Turn | Location | Event 8 | -11/Scrapyard | Discovered new exit (range 16) 65 | -11/Scrapyard | Entered Materials 328 | -10/Materials | Core integrity fell below 50% 361 | -10/Materials | Build established: Mutant 368 | -10/Materials | Lost 4 parts (1p1n2w) 527 | -10/Materials | Discovered new exit (range 14) 531 | -10/Materials | Core integrity fell below 20% 553 | -10/Materials | Destroyed by G-47 Trooper with Particle Gun Last Messages --------------- 00427_ The floor emits a surge of raw power. 00427_ System corrupted (+2). 00428_ System corrupted: Matter fused (-7). 00455_ System corrupted: FCS attempts to trigger Lgt. Assault Rifle. 00455_ System corrupted: Lgt. Assault Rifle misfires. 00471_ Acquired Mining Claw. 00477_ Connecting with Terminal... 00477_ Current location identified: Materials 00523_ K-01 Serf cleans the Terminal. 00527_ EXIT=FOUND 00535_ Aluminum Leg destroyed. 00538_ Weight Redist. System destroyed. 00543_ Lgt. Assault Rifle destroyed. 00546_ K-01 Serf destroyed. 00549_ Aluminum Leg destroyed. 00549_ K-01 Serf collects debris. 00553_ G-34 Mercenary destroyed. 00553_ Critical hit (Burn: +37). Map ----- +----------------------------------------------------+ | ?????????????????????????????????????????????????? | | ?????????????????????????????????????????????????? | | ?????????????????????????????????????????????????? | | ???????????????????????????????#######???????????? | | ???????????????????????????????# ############# | | ????????????????????????######## | | ????????????????????????# | | ????????????????????????# ### | | ????????????????????????# #?# ##+#########+ | | ????????????????????????# #?### ###???????# | | ????????????????????????# #???# #?????????#"" | | ????????????????????????# #???# #?????????#"" | | ????????????????????????# ##+#####+#?????????#"T | | ????????????????????????# #! [ #?????????#"" | | ????????????????????????# # #?????????#"" | | ???????????????#####??### # #?????????# | | ???????????????# ?# #*# #?????????# | | ???????????????# """ ?### # % #?????????# | | ???????????????# """ # # #?????????##### | | ???????????????# """ # + #?????????????? | | ???????????????# + #% #?????????????? | | ???????????????#| # # #?????????????? | | ??????????# ######### ##########?????????????? | | ###???????# % #########?????????????? | | ????????????####### ! % #?????????????? | | #??????????????????# @ g #?????????????? | | #??????????????????# =% +?????????????? | | #?????????#####????# k [ #?????????????? | | ###########]] #????## ###g #?????????????? | | # ##] ####### #?? ??????????? | | # """ ##== ^ !#?? ??????????? | | # """"" ##== ^^ #?? ?????????? | | # """"" ##!! """ #?? ######## ??????????? | | # """"" ##! """ ##? #??????????????????? | | + """ ######[ """ T#? ??????????????????? | | # ###### ##? ??????????????????? | | # + #??? |?????????????????? | | # ########"T"# #???< "?????????????????? | | ##########??????##### #??? ??????????????????? | | #???????????????????? #??? ????????????????????? | | #???????????????????? #????????????????????????? | | #????????????????????+#????????????????????????? | | #???????????????????? ????????????????????????? | | #??#????????????????? ????????????????????????? | | #? !????????????????? ????????????????????????? | | #? ?????????????????? ????????????????????????? | | # ?????#???????????????????????????????????????? | | # #???????????????????????????????????????? | | + ^ #???????????????????????????????????????? | | # "T" #???????????????????????????????????????? | +----------------------------------------------------+ Best States ------------- Heat Dissipation 25 Energy Generation 10 Energy Capacity 250 Matter Stores 290 Matter Capacity 300 Sight Range 16 Terrain Scan Density 10 Additional Mass Support 6 Evasion (%) 55 Recoil Reduction 2 Item Schematics ----------------- None Robot Schematics ------------------ None Fabricated ------------ Nothing Alien Tech Used ----------------- None Achievements -------------- None Challenges ------------ None Game ------ Seed IntegratedStasisThruster Manual? 0 Play Time 00:08:34 Cumulative 18.2 hours Start 2024.06.18 @ 23:03:48 End 2024.06.18 @ 23:08:49 Sessions 1 Manual Loads 0 Difficulty Rogue Special Mode None Game No. 30 Rogue 30 Adventurer 0 Explorer 0 Win Type - Total 0 Types 0/0/0/0/0/0/0/0/0 Lore% 14 Gallery% 24 Achievement% 17 Wizard Run 0 Options --------- Layout 2 ASCII 0 Keyboard 0 Movement Mouse Keybinds 0 Fullscreen 1 Font 48/Smallcaps Map View 50x44 Zoom Use 0% Tactical HUD 1 Map Filters NONE Filters NONE Steam 1 RUN: b02cda9b-22d9-43df-aaf0-b6a1a6e389c5